Workbook

Sheet 곱셈_양면
D1: *프린트 순서
D2: -F9 입력 후 인쇄 하기 (F9 누르면 숫자가 바뀜)
B3: [곱셈] 두자리 x 한자리 연산 계산하기 | M3: Made by zerodh@hanmail.net | O3: 정답 (접어요)
O4: 1번 | P4: 2번
B5: =RANDBETWEEN(10,99) -> 27 | C5: x | D5: =RANDBETWEEN(1,9) -> 8 | E5: = | I5: =RANDBETWEEN(50,99) -> 60 | J5: =+C5 -> x | K5: =RANDBETWEEN(1,9) -> 6 | L5: = | O5: =B5*D5 -> 216 | P5: =I5*K5 -> 360
B7: =RANDBETWEEN(10,99) -> 70 | C7: =+C5 -> x | D7: =RANDBETWEEN(1,9) -> 9 | E7: = | I7: =RANDBETWEEN(50,99) -> 92 | J7: =+J5 -> x | K7: =RANDBETWEEN(1,9) -> 2 | L7: = | O7: =B7*D7 -> 630 | P7: =I7*K7 -> 184
B9: =RANDBETWEEN(10,99) -> 28 | C9: =+C7 -> x | D9: =RANDBETWEEN(1,9) -> 4 | E9: = | I9: =RANDBETWEEN(50,99) -> 83 | J9: =+J7 -> x | K9: =RANDBETWEEN(1,9) -> 1 | L9: = | O9: =B9*D9 -> 112 | P9: =I9*K9 -> 83
B11: =RANDBETWEEN(10,99) -> 77 | C11: =+C9 -> x | D11: =RANDBETWEEN(1,9) -> 2 | E11: = | I11: =RANDBETWEEN(50,99) -> 86 | J11: =+J9 -> x | K11: =RANDBETWEEN(1,9) -> 4 | L11: = | O11: =B11*D11 -> 154 | P11: =I11*K11 -> 344
B13: =RANDBETWEEN(10,99) -> 58 | C13: =+C11 -> x | D13: =RANDBETWEEN(1,9) -> 7 | E13: = | I13: =RANDBETWEEN(50,99) -> 79 | J13: =+J11 -> x | K13: =RANDBETWEEN(1,9) -> 7 | L13: = | O13: =B13*D13 -> 406 | P13: =I13*K13 -> 553
B15: =RANDBETWEEN(10,99) -> 62 | C15: =+C13 -> x | D15: =RANDBETWEEN(1,9) -> 6 | E15: = | I15: =RANDBETWEEN(50,99) -> 86 | J15: =+J13 -> x | K15: =RANDBETWEEN(1,9) -> 5 | L15: = | O15: =B15*D15 -> 372 | P15: =I15*K15 -> 430
B18: =+B3 -> [곱셈] 두자리 x 한자리 연산 계산하기 | M18: Made by zerodh@hanmail.net | O18: 정답 (접어요)
C20: =RANDBETWEEN(10,99) -> 54 | E20: =RANDBETWEEN(1,9) -> 4 | F20: = | J20: =RANDBETWEEN(50,99) -> 51 | L20: =RANDBETWEEN(1,9) -> 8 | M20: =
D21: =ROUNDDOWN(C20/10,0) -> 5 | E21: =C20-(ROUNDDOWN(C20/10,0)*10) -> 4 | K21: =ROUNDDOWN(J20/10,0) -> 5 | L21: =J20-(ROUNDDOWN(J20/10,0)*10) -> 1
C22: =+C5 -> x | D22: =ROUNDDOWN(E20/10,0) -> 0 | E22: =E20-(ROUNDDOWN(E20/10,0)*10) -> 4 | J22: =+C22 -> x | K22: =ROUNDDOWN(L20/10,0) -> 0 | L22: =L20-(ROUNDDOWN(L20/10,0)*10) -> 8
O23: =C20*E20 -> 216 | P23: =J20*L20 -> 408
C25: =RANDBETWEEN(10,99) -> 90 | E25: =RANDBETWEEN(1,9) -> 1 | F25: = | J25: =RANDBETWEEN(50,99) -> 93 | L25: =RANDBETWEEN(1,9) -> 6 | M25: =
D26: =ROUNDDOWN(C25/10,0) -> 9 | E26: =C25-(ROUNDDOWN(C25/10,0)*10) -> 0 | K26: =ROUNDDOWN(J25/10,0) -> 9 | L26: =J25-(ROUNDDOWN(J25/10,0)*10) -> 3
C27: =+C22 -> x | D27: =ROUNDDOWN(E25/10,0) -> 0 | E27: =E25-(ROUNDDOWN(E25/10,0)*10) -> 1 | J27: =+J22 -> x | K27: =ROUNDDOWN(L25/10,0) -> 0 | L27: =L25-(ROUNDDOWN(L25/10,0)*10) -> 6
O28: =C25*E25 -> 90 | P28: =J25*L25 -> 558
C30: =RANDBETWEEN(10,99) -> 67 | E30: =RANDBETWEEN(1,9) -> 4 | F30: = | J30: =RANDBETWEEN(50,99) -> 54 | L30: =RANDBETWEEN(1,9) -> 3 | M30: =
D31: =ROUNDDOWN(C30/10,0) -> 6 | E31: =C30-(ROUNDDOWN(C30/10,0)*10) -> 7 | K31: =ROUNDDOWN(J30/10,0) -> 5 | L31: =J30-(ROUNDDOWN(J30/10,0)*10) -> 4
C32: =+C27 -> x | D32: =ROUNDDOWN(E30/10,0) -> 0 | E32: =E30-(ROUNDDOWN(E30/10,0)*10) -> 4 | J32: =+J27 -> x | K32: =ROUNDDOWN(L30/10,0) -> 0 | L32: =L30-(ROUNDDOWN(L30/10,0)*10) -> 3
O33: =C30*E30 -> 268 | P33: =J30*L30 -> 162
C35: =RANDBETWEEN(10,99) -> 85 | E35: =RANDBETWEEN(1,9) -> 2 | F35: = | J35: =RANDBETWEEN(50,99) -> 97 | L35: =RANDBETWEEN(1,9) -> 4 | M35: =
D36: =ROUNDDOWN(C35/10,0) -> 8 | E36: =C35-(ROUNDDOWN(C35/10,0)*10) -> 5 | K36: =ROUNDDOWN(J35/10,0) -> 9 | L36: =J35-(ROUNDDOWN(J35/10,0)*10) -> 7
C37: =+C32 -> x | D37: =ROUNDDOWN(E35/10,0) -> 0 | E37: =E35-(ROUNDDOWN(E35/10,0)*10) -> 2 | J37: =+J32 -> x | K37: =ROUNDDOWN(L35/10,0) -> 0 | L37: =L35-(ROUNDDOWN(L35/10,0)*10) -> 4
O38: =C35+E35 -> 87 | P38: =J35-L35 -> 93
C40: =RANDBETWEEN(10,99) -> 30 | E40: =RANDBETWEEN(1,9) -> 8 | F40: = | J40: =RANDBETWEEN(50,99) -> 64 | L40: =RANDBETWEEN(1,9) -> 9 | M40: =
D41: =ROUNDDOWN(C40/10,0) -> 3 | E41: =C40-(ROUNDDOWN(C40/10,0)*10) -> 0 | K41: =ROUNDDOWN(J40/10,0) -> 6 | L41: =J40-(ROUNDDOWN(J40/10,0)*10) -> 4
C42: =+C37 -> x | D42: =ROUNDDOWN(E40/10,0) -> 0 | E42: =E40-(ROUNDDOWN(E40/10,0)*10) -> 8 | J42: =+J37 -> x | K42: =ROUNDDOWN(L40/10,0) -> 0 | L42: =L40-(ROUNDDOWN(L40/10,0)*10) -> 9
O43: =C40*E40 -> 240 | P43: =J40*L40 -> 576

Sheet 단면Print▶

Sheet 곱셈_가로
B1: *프린트 순서
B2: -F9 입력 후 인쇄 하기 (F9 누르면 숫자가 바뀜)
B3: =+곱셈_양면!B3 -> [곱셈] 두자리 x 한자리 연산 계산하기 | M3: Made by zerodh@hanmail.net | O3: 정답 (접어요)
O4: 1번 | P4: 2번
B5: =RANDBETWEEN(10,99) -> 90 | C5: x | D5: =RANDBETWEEN(1,9) -> 1 | E5: = | I5: =RANDBETWEEN(50,99) -> 94 | J5: =+C5 -> x | K5: =RANDBETWEEN(1,9) -> 2 | L5: = | O5: =B5*D5 -> 90 | P5: =I5*K5 -> 188
B7: =RANDBETWEEN(10,99) -> 43 | C7: =+C5 -> x | D7: =RANDBETWEEN(1,9) -> 1 | E7: = | I7: =RANDBETWEEN(50,99) -> 68 | J7: =+C7 -> x | K7: =RANDBETWEEN(1,9) -> 1 | L7: = | O7: =B7*D7 -> 43 | P7: =I7*K7 -> 68
B9: =RANDBETWEEN(10,99) -> 62 | C9: =+C7 -> x | D9: =RANDBETWEEN(1,9) -> 4 | E9: = | I9: =RANDBETWEEN(50,99) -> 51 | J9: =+C9 -> x | K9: =RANDBETWEEN(1,9) -> 4 | L9: = | O9: =B9*D9 -> 248 | P9: =I9*K9 -> 204
B11: =RANDBETWEEN(10,99) -> 33 | C11: =+C9 -> x | D11: =RANDBETWEEN(1,9) -> 9 | E11: = | I11: =RANDBETWEEN(50,99) -> 73 | J11: =+C11 -> x | K11: =RANDBETWEEN(1,9) -> 1 | L11: = | O11: =B11*D11 -> 297 | P11: =I11*K11 -> 73
B13: =RANDBETWEEN(10,99) -> 28 | C13: =+C11 -> x | D13: =RANDBETWEEN(1,9) -> 6 | E13: = | I13: =RANDBETWEEN(50,99) -> 97 | J13: =+C13 -> x | K13: =RANDBETWEEN(1,9) -> 8 | L13: = | O13: =B13*D13 -> 168 | P13: =I13*K13 -> 776
B15: =RANDBETWEEN(10,99) -> 89 | C15: =+C13 -> x | D15: =RANDBETWEEN(1,9) -> 9 | E15: = | I15: =RANDBETWEEN(50,99) -> 65 | J15: =+C15 -> x | K15: =RANDBETWEEN(1,9) -> 9 | L15: = | O15: =B15*D15 -> 801 | P15: =I15*K15 -> 585

Sheet 곱셈_세로
B1: *프린트 순서
B2: -F9 입력 후 인쇄 하기 (F9 누르면 숫자가 바뀜)
B3: =+곱셈_가로!B3 -> [곱셈] 두자리 x 한자리 연산 계산하기 | M3: Made by zerodh@hanmail.net | O3: 정답 (접어요)
O4: 1번 | P4: 2번
C5: =RANDBETWEEN(10,99) -> 49 | E5: =RANDBETWEEN(1,9) -> 6 | F5: = | J5: =RANDBETWEEN(50,99) -> 81 | L5: =RANDBETWEEN(1,9) -> 4 | M5: =
D6: =ROUNDDOWN(C5/10,0) -> 4 | E6: =C5-(ROUNDDOWN(C5/10,0)*10) -> 9 | K6: =ROUNDDOWN(J5/10,0) -> 8 | L6: =J5-(ROUNDDOWN(J5/10,0)*10) -> 1
C7: x | D7: =ROUNDDOWN(E5/10,0) -> 0 | E7: =E5-(ROUNDDOWN(E5/10,0)*10) -> 6 | J7: =+C7 -> x | K7: =ROUNDDOWN(L5/10,0) -> 0 | L7: =L5-(ROUNDDOWN(L5/10,0)*10) -> 4
O8: =C5*E5 -> 294 | P8: =J5*L5 -> 324
C10: =RANDBETWEEN(10,99) -> 13 | E10: =RANDBETWEEN(1,9) -> 8 | F10: = | J10: =RANDBETWEEN(50,99) -> 89 | L10: =RANDBETWEEN(1,9) -> 7 | M10: =
D11: =ROUNDDOWN(C10/10,0) -> 1 | E11: =C10-(ROUNDDOWN(C10/10,0)*10) -> 3 | K11: =ROUNDDOWN(J10/10,0) -> 8 | L11: =J10-(ROUNDDOWN(J10/10,0)*10) -> 9
C12: x | D12: =ROUNDDOWN(E10/10,0) -> 0 | E12: =E10-(ROUNDDOWN(E10/10,0)*10) -> 8 | J12: =+C12 -> x | K12: =ROUNDDOWN(L10/10,0) -> 0 | L12: =L10-(ROUNDDOWN(L10/10,0)*10) -> 7
O13: =C10*E10 -> 104 | P13: =J10*L10 -> 623
C15: =RANDBETWEEN(10,99) -> 26 | E15: =RANDBETWEEN(1,9) -> 9 | F15: = | J15: =RANDBETWEEN(50,99) -> 77 | L15: =RANDBETWEEN(1,9) -> 5 | M15: =
D16: =ROUNDDOWN(C15/10,0) -> 2 | E16: =C15-(ROUNDDOWN(C15/10,0)*10) -> 6 | K16: =ROUNDDOWN(J15/10,0) -> 7 | L16: =J15-(ROUNDDOWN(J15/10,0)*10) -> 7
C17: x | D17: =ROUNDDOWN(E15/10,0) -> 0 | E17: =E15-(ROUNDDOWN(E15/10,0)*10) -> 9 | J17: =+C17 -> x | K17: =ROUNDDOWN(L15/10,0) -> 0 | L17: =L15-(ROUNDDOWN(L15/10,0)*10) -> 5
O18: =C15*E15 -> 234 | P18: =J15*L15 -> 385
C20: =RANDBETWEEN(10,99) -> 58 | E20: =RANDBETWEEN(1,9) -> 9 | F20: = | J20: =RANDBETWEEN(50,99) -> 91 | L20: =RANDBETWEEN(1,9) -> 4 | M20: =
D21: =ROUNDDOWN(C20/10,0) -> 5 | E21: =C20-(ROUNDDOWN(C20/10,0)*10) -> 8 | K21: =ROUNDDOWN(J20/10,0) -> 9 | L21: =J20-(ROUNDDOWN(J20/10,0)*10) -> 1
C22: x | D22: =ROUNDDOWN(E20/10,0) -> 0 | E22: =E20-(ROUNDDOWN(E20/10,0)*10) -> 9 | J22: =+C22 -> x | K22: =ROUNDDOWN(L20/10,0) -> 0 | L22: =L20-(ROUNDDOWN(L20/10,0)*10) -> 4
O23: =C20*E20 -> 522 | P23: =J20*L20 -> 364
C25: =RANDBETWEEN(10,99) -> 90 | E25: =RANDBETWEEN(1,9) -> 9 | F25: = | J25: =RANDBETWEEN(50,99) -> 52 | L25: =RANDBETWEEN(1,9) -> 3 | M25: =
D26: =ROUNDDOWN(C25/10,0) -> 9 | E26: =C25-(ROUNDDOWN(C25/10,0)*10) -> 0 | K26: =ROUNDDOWN(J25/10,0) -> 5 | L26: =J25-(ROUNDDOWN(J25/10,0)*10) -> 2
C27: x | D27: =ROUNDDOWN(E25/10,0) -> 0 | E27: =E25-(ROUNDDOWN(E25/10,0)*10) -> 9 | J27: =+C27 -> x | K27: =ROUNDDOWN(L25/10,0) -> 0 | L27: =L25-(ROUNDDOWN(L25/10,0)*10) -> 3
O28: =C25*E25 -> 810 | P28: =J25*L25 -> 156
